[Event "Championnat d'Europe Rapide"]
[Date "2024.12.07"]
[White "Lagarde, Maxime"]
[Black "Navara, David"]
[WhiteElo "2600"]
[BlackElo "2665"]
[Round "5.1"]
[Result "1/2-1/2"]
[TimeControl "900+10"]

1. c4 {[%clk 00:15:10]} Nf6 {[%clk 00:15:10]} 2. Nf3 {[%clk 00:15:10]} Nc6
{[%clk 00:15:10]} 3. Nc3 {[%clk 00:15:10]} e5 4. d3 Bb4 {[%emt 00:00:04] [%clk
00:15:18]} 5. Bd2 {[%emt 00:00:01] [%clk 00:15:47]} O-O {[%emt 00:00:09] [%clk
00:15:20]} 6. e3 {[%emt 00:00:16] [%clk 00:15:41]} Re8 {[%emt 00:00:51] [%clk
00:14:39]} 7. Be2 {[%emt 00:00:37] [%clk 00:15:14]} d6 {[%emt 00:03:40] [%clk
00:11:09]} 8. O-O {[%emt 00:00:44] [%clk 00:14:40]} Bg4 {[%emt 00:00:03] [%clk
00:11:16]} 9. h3 {[%emt 00:00:23] [%clk 00:14:26]} Bh5 {[%emt 00:00:01] [%clk
00:11:25]} 10. a3 {[%emt 00:00:50] [%clk 00:13:48]} Bxc3 {[%emt 00:00:03] [%clk
00:11:31]} 11. Bxc3 {[%emt 00:00:02] [%clk 00:13:56]} e4 {[%emt 00:00:23] [%clk
00:11:19]} 12. Nd2 {[%emt 00:01:22] [%clk 00:12:43]} Bxe2 {[%emt 00:00:06] [%clk
00:11:23]} 13. Qxe2 {[%emt 00:00:01] [%clk 00:12:52]} exd3 {[%emt 00:00:07]
[%clk 00:11:26]} 14. Qxd3 {[%emt 00:00:02] [%clk 00:13:00]} Qe7 {[%emt 00:00:25]
[%clk 00:11:11]} 15. e4 {[%emt 00:02:00] [%clk 00:11:10]} Nd7 {[%emt 00:04:38]
[%clk 00:06:43]} 16. Qg3 {[%emt 00:01:13] [%clk 00:10:06]} f6 {[%emt 00:00:03]
[%clk 00:06:51]} 17. Rae1 {[%emt 00:00:40] [%clk 00:09:35]} Qf7 {[%emt 00:00:40]
[%clk 00:06:21]} 18. Re3 {[%emt 00:02:13] [%clk 00:07:33]} a5 {[%emt 00:00:14]
[%clk 00:06:18]} 19. f4 {[%emt 00:00:38] [%clk 00:07:04]} Nc5 {[%emt 00:00:52]
[%clk 00:05:37]} 20. e5 {[%emt 00:01:37] [%clk 00:05:37]} f5 {[%emt 00:00:05]
[%clk 00:05:42]} 21. exd6 {[%emt 00:00:53] [%clk 00:04:55]} cxd6 {[%emt
00:00:09] [%clk 00:05:42]} 22. Rfe1 {[%emt 00:00:12] [%clk 00:04:53]} Rxe3
{[%emt 00:00:03] [%clk 00:05:50]} 23. Qxe3 {[%emt 00:00:01] [%clk 00:05:01]} Na4
{[%emt 00:00:27] [%clk 00:05:32]} 24. Bd4 {[%emt 00:00:35] [%clk 00:04:37]} Rd8
{[%emt 00:00:45] [%clk 00:04:57]} 25. Nf3 {[%emt 00:00:40] [%clk 00:04:07]} h6
{[%emt 00:00:10] [%clk 00:04:57]} 26. b3 {[%emt 00:00:21] [%clk 00:03:56]} Nxd4
{[%emt 00:00:03] [%clk 00:05:04]} 27. Nxd4 {[%emt 00:00:02] [%clk 00:04:04]} Nc5
{[%emt 00:00:01] [%clk 00:05:12]} 28. Qe7 {[%emt 00:01:24] [%clk 00:02:51]} Rd7
{[%emt 00:00:02] [%clk 00:05:21]} 29. Qxf7+ {[%emt 00:00:22] [%clk 00:02:38]}
Kxf7 {[%emt 00:00:05] [%clk 00:05:26]} 30. b4 {[%emt 00:00:25] [%clk 00:02:24]}
axb4 {[%emt 00:00:03] [%clk 00:05:32]} 31. axb4 {[%emt 00:00:02] [%clk
00:02:33]} Nd3 {[%emt 00:00:04] [%clk 00:05:36]} 32. Re3 {[%emt 00:00:40] [%clk
00:02:03]} Nxb4 {[%emt 00:00:22] [%clk 00:05:24]} 33. Nxf5 {[%emt 00:00:02]
[%clk 00:02:11]} Nc6 {[%emt 00:02:02] [%clk 00:03:32]} 34. Rd3 {[%emt 00:00:01]
[%clk 00:02:20]} Ke6 {[%emt 00:00:32] [%clk 00:03:10]} 35. g4 {[%emt 00:00:02]
[%clk 00:02:28]} g5 {[%emt 00:01:03] [%clk 00:02:16]} 36. Re3+ {[%emt 00:00:42]
[%clk 00:01:57]} Kf6 {[%emt 00:00:01] [%clk 00:02:25]} 37. Rd3 {[%emt 00:00:43]
[%clk 00:01:24]} Ke6 {[%emt 00:00:20] [%clk 00:02:15]} 38. Re3+ {[%emt 00:00:33]
[%clk 00:01:01]} Kf6 {[%emt 00:00:02] [%clk 00:02:24]} 39. Re4 {[%emt 00:00:27]
[%clk 00:00:44]} h5 {[%emt 00:01:52] [%clk 00:00:42]} 40. fxg5+ {[%emt 00:00:01]
[%clk 00:00:52]} Kxg5 {[%emt 00:00:02] [%clk 00:00:50]} 41. Ne3 {[%emt 00:00:14]
[%clk 00:00:48]} Ne5 {[%emt 00:00:38] [%clk 00:00:23]} 42. Kg2 {[%emt 00:00:28]
[%clk 00:00:29]} hxg4 {[%emt 00:00:02] [%clk 00:00:31]} 43. Nxg4 {[%emt
00:00:15] [%clk 00:00:25]} Nxg4 {[%emt 00:00:08] [%clk 00:00:32]} 44. hxg4
{[%emt 00:00:06] [%clk 00:00:29]} Rc7 {[%emt 00:00:18] [%clk 00:00:24]} 45. Kf3
{[%emt 00:00:09] [%clk 00:00:30]} Rc5 {[%emt 00:00:05] [%clk 00:00:28]} 46. Rd4
{[%emt 00:00:08] [%clk 00:00:33]} b5 {[%emt 00:00:01] [%clk 00:00:37]} 47. cxb5
{[%emt 00:00:07] [%clk 00:00:36]} Rxb5 {[%emt 00:00:02] [%clk 00:00:46]} 48.
Rxd6 {[%emt 00:00:04] [%clk 00:00:42]} Rb3+ {[%emt 00:00:01] [%clk 00:00:54]}
49. Ke2 {[%emt 00:00:01] [%clk 00:00:51]} Kxg4 {[%emt 00:00:02] [%clk 00:01:03]}
50. Rd3 {[%emt 00:00:01] [%clk 00:01:00]} Rxd3 {[%emt 00:00:01] [%clk 00:01:11]}
51. Kxd3 {[%emt 00:00:01] [%clk 00:00:57]} 1/2-1/2

[Site "Europe Echecs"]

[Event "Championnat d'Europe Rapide"]
[Date "2024.12.07"]
[White "Van Foreest, Jorden"]
[Black "Fridman, Daniel"]
[WhiteElo "2677"]
[BlackElo "2571"]
[Round "5.2"]
[Result "1-0"]
[TimeControl "900+10"]

1. e4 {[%clk 00:14:55]} e6 2. d4 {[%clk 00:14:55]} d5 {[%clk 00:15:27]} 3. Nc3
{[%emt 00:00:02] [%clk 00:15:01]} Nf6 {[%emt 00:00:01] [%clk 00:15:36]} 4. e5
{[%emt 00:00:02] [%clk 00:15:10]} Nfd7 {[%emt 00:00:01] [%clk 00:15:44]} 5. f4
{[%emt 00:00:02] [%clk 00:15:18]} c5 {[%emt 00:00:01] [%clk 00:15:53]} 6. Nf3
{[%emt 00:00:02] [%clk 00:15:27]} Nc6 {[%emt 00:00:03] [%clk 00:16:00]} 7. Be3
{[%emt 00:00:01] [%clk 00:15:36]} cxd4 {[%emt 00:00:02] [%clk 00:16:07]} 8. Nxd4
{[%emt 00:00:02] [%clk 00:15:44]} Qb6 {[%emt 00:00:02] [%clk 00:16:16]} 9. Qd2
{[%emt 00:00:01] [%clk 00:15:53]} Qxb2 {[%emt 00:00:03] [%clk 00:16:21]} 10. Rb1
{[%emt 00:00:01] [%clk 00:16:03]} Qa3 {[%emt 00:00:02] [%clk 00:16:29]} 11. Bb5
{[%emt 00:00:01] [%clk 00:16:12]} Nxd4 {[%emt 00:00:04] [%clk 00:16:36]} 12.
Bxd4 {[%emt 00:00:01] [%clk 00:16:21]} a6 {[%emt 00:00:01] [%clk 00:16:44]} 13.
Rb3 {[%emt 00:00:38] [%clk 00:15:53]} Qe7 {[%emt 00:00:03] [%clk 00:16:52]} 14.
Ba4 {[%emt 00:00:01] [%clk 00:16:02]} Qh4+ {[%emt 00:02:16] [%clk 00:14:45]} 15.
g3 {[%emt 00:00:08] [%clk 00:16:04]} Qh3 {[%emt 00:00:10] [%clk 00:14:45]} 16.
Bb5 {[%emt 00:05:38] [%clk 00:10:36]} axb5 {[%emt 00:02:23] [%clk 00:12:33]} 17.
Nxb5 {[%emt 00:00:01] [%clk 00:10:44]} Ra4 {[%emt 00:00:02] [%clk 00:12:41]} 18.
Rc3 {[%emt 00:02:35] [%clk 00:08:19]} Bb4 {[%emt 00:00:02] [%clk 00:12:49]} 19.
Rxc8+ {[%emt 00:00:03] [%clk 00:08:26]} Ke7 {[%emt 00:00:01] [%clk 00:12:58]}
20. Bc3 {[%emt 00:01:01] [%clk 00:07:36]} Bxc3 {[%emt 00:03:56] [%clk 00:09:11]}
21. Rxc3 {[%emt 00:00:03] [%clk 00:07:43]} Rb4 {[%emt 00:02:57] [%clk 00:06:24]}
22. Rb3 {[%emt 00:00:18] [%clk 00:07:36]} Re4+ {[%emt 00:00:01] [%clk 00:06:32]}
23. Kf2 {[%emt 00:00:23] [%clk 00:07:23]} Nc5 {[%emt 00:01:55] [%clk 00:04:47]}
24. Nd6 {[%emt 00:03:56] [%clk 00:03:37]} Rd8 {[%emt 00:01:43] [%clk 00:03:15]}
25. Qa5 {[%emt 00:01:10] [%clk 00:02:37]} Re2+ {[%emt 00:01:06] [%clk 00:02:18]}
26. Kxe2 {[%emt 00:00:01] [%clk 00:02:47]} Qg2+ {[%emt 00:00:01] [%clk
00:02:27]} 27. Ke3 {[%emt 00:00:02] [%clk 00:02:55]} Qxh1 {[%emt 00:00:02] [%clk
00:02:35]} 28. Nf5+ {[%emt 00:02:07] [%clk 00:00:58]} exf5 {[%emt 00:00:09]
[%clk 00:02:35]} 29. Qxc5+ {[%emt 00:00:01] [%clk 00:01:07]} Ke8 {[%emt
00:00:01] [%clk 00:02:44]} 30. Kd2 {[%emt 00:00:01] [%clk 00:01:16]} d4 {[%emt
00:00:11] [%clk 00:02:43]} 31. Qb5+ {[%emt 00:00:22] [%clk 00:01:04]} Rd7 {[%emt
00:01:24] [%clk 00:01:29]} 32. h4 {[%emt 00:00:02] [%clk 00:01:13]} Qg2+ {[%emt
00:01:05] [%clk 00:00:33]} 33. Kc1 {[%clk 00:01:22]} Qe4 {[%emt 00:00:02] [%clk
00:00:40]} 34. Ra3 {[%emt 00:00:19] [%clk 00:01:13]} f6 {[%emt 00:00:23] [%clk
00:00:28]} 35. Kb2 {[%emt 00:00:51] [%clk 00:00:32]} Qc6 {[%emt 00:00:16] [%clk
00:00:21]} 36. Ra8+ {[%emt 00:00:29] [%clk 00:00:13]} Kf7 {[%emt 00:00:05] [%clk
00:00:27]} 37. Qb4 {[%emt 00:00:07] [%clk 00:00:17]} Rc7 {[%emt 00:00:11] [%clk
00:00:26]} 38. Qb3+ {[%emt 00:00:10] [%clk 00:00:17]} Kg6 {[%emt 00:00:04] [%clk
00:00:32]} 39. Rd8 {[%emt 00:00:05] [%clk 00:00:22]} Qc3+ {[%emt 00:00:23] [%clk
00:00:19]} 40. Qxc3 {[%emt 00:00:01] [%clk 00:00:31]} dxc3+ {[%clk 00:00:28]}
41. Kb3 {[%emt 00:00:01] [%clk 00:00:40]} fxe5 {[%emt 00:00:01] [%clk 00:00:37]}
42. fxe5 {[%emt 00:00:06] [%clk 00:00:43]} Re7 {[%emt 00:00:06] [%clk 00:00:41]}
43. Rd5 {[%emt 00:00:39] [%clk 00:00:14]} Kh5 {[%emt 00:00:07] [%clk 00:00:44]}
44. e6 {[%emt 00:00:07] [%clk 00:00:17]} Kg4 {[%emt 00:00:10] [%clk 00:00:44]}
45. Rd7 {[%emt 00:00:01] [%clk 00:00:27]} Rxe6 {[%emt 00:00:04] [%clk 00:00:50]}
46. Rxg7+ {[%emt 00:00:01] [%clk 00:00:36]} Rg6 {[%emt 00:00:05] [%clk
00:00:55]} 47. Rxh7 {[%emt 00:00:01] [%clk 00:00:45]} Kxg3 {[%emt 00:00:11]
[%clk 00:00:54]} 48. h5 {[%emt 00:00:07] [%clk 00:00:47]} Rb6+ {[%emt 00:00:20]
[%clk 00:00:45]} 49. Kxc3 {[%emt 00:00:01] [%clk 00:00:56]} f4 {[%clk 00:00:54]}
50. h6 {[%emt 00:00:01] [%clk 00:01:04]} Kf3 {[%emt 00:00:15] [%clk 00:00:50]}
51. a4 {[%emt 00:00:09] [%clk 00:01:05]} Re6 {[%emt 00:00:23] [%clk 00:00:37]}
52. a5 {[%emt 00:00:29] [%clk 00:00:46]} Ke3 {[%emt 00:00:07] [%clk 00:00:40]}
53. Rxb7 {[%emt 00:00:01] [%clk 00:00:55]} Rc6+ {[%emt 00:00:02] [%clk
00:00:48]} 54. Kb4 {[%emt 00:00:03] [%clk 00:01:01]} Rxh6 {[%emt 00:00:03] [%clk
00:00:55]} 55. Re7+ {[%emt 00:00:09] [%clk 00:01:02]} Kd4 {[%emt 00:00:25] [%clk
00:00:40]} 56. Rf7 {[%emt 00:00:02] [%clk 00:01:10]} Ke5 {[%emt 00:00:05] [%clk
00:00:46]} 57. c4 {[%emt 00:00:07] [%clk 00:01:13]} Rh1 {[%emt 00:00:33] [%clk
00:00:22]} 58. a6 {[%emt 00:00:01] [%clk 00:01:22]} Ra1 {[%emt 00:00:03] [%clk
00:00:29]} 59. Kb5 {[%emt 00:00:09] [%clk 00:01:24]} Kd6 {[%emt 00:00:10] [%clk
00:00:28]} 60. c5+ {[%emt 00:00:24] [%clk 00:01:10]} Kd5 {[%emt 00:00:06] [%clk
00:00:34]} 61. Rxf4 {[%emt 00:00:01] [%clk 00:01:18]} 1-0

[Site "Europe Echecs"]

[Event "Championnat d'Europe Rapide"]
[Date "2024.12.07"]
[White "Georgiev, Kiril"]
[Black "Jobava, Baadur"]
[WhiteElo "2537"]
[BlackElo "2578"]
[Round "5.3"]
[Result "1/2-1/2"]
[TimeControl "900+10"]

1. Nf3 {[%emt 00:00:14] [%clk 00:15:06]} d5 {[%emt 00:00:04] [%clk 00:15:15]} 2.
e3 {[%emt 00:00:07] [%clk 00:15:09]} c5 {[%emt 00:02:10] [%clk 00:13:16]} 3. b3
{[%emt 00:00:35] [%clk 00:14:43]} Nc6 {[%emt 00:01:27] [%clk 00:11:59]} 4. Bb5
{[%emt 00:00:20] [%clk 00:14:33]} f6 {[%emt 00:01:00] [%clk 00:11:10]} 5. Nc3
{[%emt 00:00:40] [%clk 00:14:02]} e5 {[%emt 00:00:23] [%clk 00:10:58]} 6. Ba3
{[%emt 00:01:14] [%clk 00:12:56]} Qa5 {[%emt 00:01:02] [%clk 00:10:07]} 7. Bxc6+
{[%emt 00:01:12] [%clk 00:11:54]} bxc6 {[%emt 00:00:02] [%clk 00:10:15]} 8. Na4
{[%emt 00:00:02] [%clk 00:12:02]} Ba6 {[%emt 00:00:39] [%clk 00:09:46]} 9. c4
{[%emt 00:01:56] [%clk 00:10:15]} dxc4 {[%emt 00:00:17] [%clk 00:09:40]} 10. Qc2
{[%emt 00:01:48] [%clk 00:08:36]} cxb3 {[%emt 00:02:43] [%clk 00:07:08]} 11.
axb3 {[%emt 00:00:09] [%clk 00:08:38]} Qb5 {[%emt 00:00:25] [%clk 00:06:52]} 12.
Qc4 {[%emt 00:01:29] [%clk 00:07:18]} Qxc4 {[%emt 00:00:38] [%clk 00:06:26]} 13.
bxc4 {[%emt 00:00:02] [%clk 00:07:25]} e4 {[%emt 00:00:41] [%clk 00:05:54]} 14.
Nxc5 {[%emt 00:00:57] [%clk 00:06:38]} Bxc5 {[%emt 00:00:43] [%clk 00:05:22]}
15. Bxc5 {[%emt 00:00:03] [%clk 00:06:45]} Bxc4 {[%emt 00:00:27] [%clk
00:05:06]} 16. Nd4 {[%emt 00:00:14] [%clk 00:06:40]} Nh6 {[%emt 00:03:10] [%clk
00:02:06]} 17. f3 {[%emt 00:02:29] [%clk 00:04:21]} Nf7 {[%emt 00:00:03] [%clk
00:02:13]} 18. Kf2 {[%emt 00:00:01] [%clk 00:04:29]} Ne5 {[%emt 00:00:43] [%clk
00:01:41]} 19. Kg3 {[%emt 00:00:02] [%clk 00:04:36]} h5 {[%emt 00:00:12] [%clk
00:01:40]} 20. h4 {[%emt 00:00:17] [%clk 00:04:29]} Bd3 {[%emt 00:00:22] [%clk
00:01:29]} 21. Rxa7 {[%emt 00:00:51] [%clk 00:03:47]} Rxa7 {[%emt 00:00:01]
[%clk 00:01:38]} 22. Bxa7 {[%emt 00:00:02] [%clk 00:03:56]} Kd7 {[%emt 00:00:03]
[%clk 00:01:44]} 23. Nb3 {[%emt 00:00:22] [%clk 00:03:44]} Kd6 {[%emt 00:01:04]
[%clk 00:00:51]} 24. Rc1 {[%emt 00:00:53] [%clk 00:02:59]} g5 {[%emt 00:00:23]
[%clk 00:00:40]} 25. Nd4 {[%emt 00:01:15] [%clk 00:01:53]} gxh4+ {[%emt
00:00:10] [%clk 00:00:39]} 26. Kxh4 {[%emt 00:00:07] [%clk 00:01:55]} Rg8 {[%emt
00:00:03] [%clk 00:00:48]} 27. Kh3 {[%emt 00:00:08] [%clk 00:01:56]} exf3 {[%emt
00:00:21] [%clk 00:00:39]} 28. gxf3 {[%emt 00:00:11] [%clk 00:01:54]} Nc4 {[%emt
00:00:02] [%clk 00:00:48]} 29. Rc3 {[%emt 00:01:05] [%clk 00:00:59]} Bf1+ {[%emt
00:00:02] [%clk 00:00:56]} 30. Kh4 {[%emt 00:00:02] [%clk 00:01:06]} Ra8 {[%emt
00:00:16] [%clk 00:00:50]} 31. Nf5+ {[%emt 00:00:21] [%clk 00:00:54]} Ke5 {[%emt
00:00:16] [%clk 00:00:45]} 32. Ng3 {[%emt 00:00:13] [%clk 00:00:50]} Nxd2 {[%emt
00:00:34] [%clk 00:00:22]} 33. Bd4+ {[%emt 00:00:17] [%clk 00:00:42]} Kd5 {[%emt
00:00:03] [%clk 00:00:31]} 34. Rc5+ {[%emt 00:00:08] [%clk 00:00:43]} Kd6 {[%emt
00:00:01] [%clk 00:00:40]} 35. Nxf1 {[%emt 00:00:15] [%clk 00:00:39]} Nxf3+
{[%emt 00:00:06] [%clk 00:00:44]} 36. Kg3 {[%emt 00:00:12] [%clk 00:00:35]} Nxd4
{[%emt 00:00:03] [%clk 00:00:52]} 37. exd4 {[%emt 00:00:01] [%clk 00:00:44]} Ra4
{[%emt 00:00:02] [%clk 00:01:01]} 38. Rxh5 {[%emt 00:00:05] [%clk 00:00:47]}
Rxd4 {[%emt 00:00:02] [%clk 00:01:10]} 39. Ne3 {[%emt 00:00:02] [%clk 00:00:56]}
Kc7 {[%emt 00:00:06] [%clk 00:01:14]} 40. Rh6 {[%emt 00:00:08] [%clk 00:00:57]}
f5 {[%emt 00:00:02] [%clk 00:01:23]} 41. Nxf5 {[%emt 00:00:03] [%clk 00:01:03]}
Rd1 {[%emt 00:00:02] [%clk 00:01:31]} 42. Kf4 {[%emt 00:00:04] [%clk 00:01:08]}
Rf1+ {[%emt 00:00:03] [%clk 00:01:40]} 43. Ke4 {[%emt 00:00:01] [%clk 00:01:17]}
Re1+ {[%emt 00:00:01] [%clk 00:01:48]} 44. Ne3 {[%emt 00:00:01] [%clk 00:01:26]}
Ra1 {[%emt 00:00:02] [%clk 00:01:56]} 45. Nc4 {[%emt 00:00:02] [%clk 00:01:33]}
Re1+ {[%emt 00:00:02] [%clk 00:02:04]} 46. Kd4 {[%emt 00:00:01] [%clk 00:01:42]}
Rd1+ {[%emt 00:00:02] [%clk 00:02:12]} 47. Kc3 {[%emt 00:00:15] [%clk 00:01:37]}
c5 {[%emt 00:00:01] [%clk 00:02:21]} 48. Ne5 {[%emt 00:00:09] [%clk 00:01:38]}
Rd5 {[%emt 00:00:04] [%clk 00:02:28]} 49. Nd3 {[%emt 00:00:01] [%clk 00:01:46]}
c4 {[%emt 00:00:01] [%clk 00:02:37]} 50. Nb4 {[%emt 00:00:09] [%clk 00:01:46]}
Rg5 {[%emt 00:00:02] [%clk 00:02:46]} 51. Kxc4 {[%emt 00:00:03] [%clk 00:01:54]}
Kd7 {[%emt 00:00:02] [%clk 00:02:54]} 52. Nd5 {[%emt 00:00:02] [%clk 00:02:02]}
Rg1 {[%emt 00:00:01] [%clk 00:03:02]} 53. Kd4 {[%emt 00:00:17] [%clk 00:01:54]}
Rd1+ {[%emt 00:00:03] [%clk 00:03:10]} 54. Ke4 {[%clk 00:02:03]} Re1+ {[%emt
00:00:02] [%clk 00:03:19]} 55. Ne3 {[%emt 00:00:01] [%clk 00:02:11]} Kc7 {[%emt
00:00:01] [%clk 00:03:28]} 56. Kd4 {[%emt 00:00:01] [%clk 00:02:19]} Ra1 {[%emt
00:00:04] [%clk 00:03:36]} 57. Nc4 {[%emt 00:00:01] [%clk 00:02:27]} Rg1 {[%emt
00:00:03] [%clk 00:03:43]} 58. Rh7+ {[%emt 00:00:10] [%clk 00:02:27]} Kc6 {[%emt
00:00:01] [%clk 00:03:52]} 59. Ne5+ {[%emt 00:00:01] [%clk 00:02:35]} Kd6 {[%emt
00:00:01] [%clk 00:04:02]} 60. Rh6+ {[%emt 00:00:01] [%clk 00:02:43]} Ke7 {[%emt
00:00:01] [%clk 00:04:11]} 61. Ra6 {[%emt 00:00:06] [%clk 00:02:47]} Rd1+ {[%emt
00:00:03] [%clk 00:04:18]} 62. Ke4 {[%emt 00:00:02] [%clk 00:02:55]} Re1+ {[%emt
00:00:02] [%clk 00:04:27]} 63. Kf4 {[%emt 00:00:01] [%clk 00:03:03]} Rf1+ {[%emt
00:00:02] [%clk 00:04:35]} 64. Nf3 {[%emt 00:00:01] [%clk 00:03:11]} Kd7 {[%emt
00:00:01] [%clk 00:04:44]} 65. Ke4 {[%emt 00:00:02] [%clk 00:03:19]} Kc7 {[%emt
00:00:02] [%clk 00:04:53]} 66. Nd4 {[%emt 00:00:02] [%clk 00:03:28]} Rh1 {[%emt
00:00:02] [%clk 00:05:00]} 67. Rg6 {[%emt 00:00:05] [%clk 00:03:32]} Rh5 {[%emt
00:00:11] [%clk 00:05:00]} 68. Ne6+ {[%emt 00:00:31] [%clk 00:03:11]} Kd7 {[%emt
00:00:04] [%clk 00:05:06]} 69. Ng5 {[%emt 00:00:01] [%clk 00:03:18]} Rh1 {[%emt
00:00:04] [%clk 00:05:13]} 70. Ke5 {[%emt 00:00:02] [%clk 00:03:26]} Rg1 {[%emt
00:00:27] [%clk 00:04:56]} 71. Rd6+ {[%emt 00:00:09] [%clk 00:03:26]} Ke7 {[%emt
00:00:02] [%clk 00:05:05]} 72. Ne4 {[%emt 00:00:03] [%clk 00:03:32]} Re1 {[%emt
00:00:09] [%clk 00:05:07]} 73. Rd4 {[%emt 00:00:33] [%clk 00:03:09]} Rh1 {[%emt
00:00:18] [%clk 00:04:58]} 74. Ra4 {[%emt 00:00:21] [%clk 00:02:58]} Rh5+ {[%emt
00:00:04] [%clk 00:05:05]} 75. Kd4 {[%emt 00:00:01] [%clk 00:03:07]} Rh4 {[%emt
00:00:21] [%clk 00:04:54]} 76. Ra6 {[%emt 00:00:04] [%clk 00:03:12]} Kd7 {[%emt
00:00:23] [%clk 00:04:43]} 77. Rb6 {[%emt 00:00:24] [%clk 00:02:58]} Kc7 {[%emt
00:00:06] [%clk 00:04:46]} 78. Rg6 {[%emt 00:00:05] [%clk 00:03:02]} Rh1 {[%emt
00:00:03] [%clk 00:04:55]} 79. Nc3 {[%emt 00:00:03] [%clk 00:03:09]} Kd7 {[%emt
00:00:07] [%clk 00:04:58]} 80. Ne4 {[%emt 00:00:27] [%clk 00:02:51]} Kc7 {[%emt
00:00:04] [%clk 00:05:04]} 81. Nf6 {[%emt 00:00:11] [%clk 00:02:49]} Rd1+ {[%emt
00:00:10] [%clk 00:05:05]} 82. Ke5 {[%emt 00:00:06] [%clk 00:02:52]} Re1+ {[%emt
00:00:03] [%clk 00:05:13]} 83. Ne4 {[%emt 00:00:03] [%clk 00:02:58]} Rh1 {[%emt
00:00:48]} 1/2-1/2

[Site "Europe Echecs"]

[Event "Championnat d'Europe Rapide"]
[Date "2024.12.07"]
[White "Kalezic, Blazo"]
[Black "Safarli, Eltaj"]
[WhiteElo "2382"]
[BlackElo "2610"]
[Round "5.4"]
[Result "0-1"]
[TimeControl "900+10"]

1. e4 {[%emt 00:00:03] [%clk 00:15:17]} c5 {[%emt 00:00:05] [%clk 00:15:17]} 2.
Nf3 {[%emt 00:00:01] [%clk 00:15:24]} Nc6 {[%emt 00:00:11] [%clk 00:15:16]} 3.
Nc3 {[%emt 00:00:04] [%clk 00:15:30]} e6 {[%emt 00:00:05] [%clk 00:15:21]} 4. d4
{[%emt 00:00:05] [%clk 00:15:34]} cxd4 {[%emt 00:00:02] [%clk 00:15:28]} 5. Nxd4
{[%emt 00:00:03] [%clk 00:15:42]} Bc5 {[%emt 00:00:05] [%clk 00:15:33]} 6. Nb3
{[%emt 00:00:25] [%clk 00:15:26]} Bb6 {[%emt 00:00:08] [%clk 00:15:35]} 7. Qe2
{[%emt 00:00:43] [%clk 00:14:53]} Nge7 {[%emt 00:00:38] [%clk 00:15:07]} 8. Be3
{[%emt 00:00:16] [%clk 00:14:47]} d5 {[%emt 00:00:44] [%clk 00:14:33]} 9. Bxb6
{[%emt 00:01:20] [%clk 00:13:37]} axb6 {[%emt 00:00:03] [%clk 00:14:40]} 10. g3
{[%emt 00:01:26] [%clk 00:12:21]} d4 {[%emt 00:00:26] [%clk 00:14:25]} 11. Nb5
{[%emt 00:00:58] [%clk 00:11:33]} O-O {[%emt 00:00:08] [%clk 00:14:26]} 12. Bg2
{[%emt 00:00:23] [%clk 00:11:20]} e5 {[%emt 00:00:11] [%clk 00:14:25]} 13. O-O
{[%emt 00:00:20] [%clk 00:11:10]} Be6 {[%emt 00:00:14] [%clk 00:14:22]} 14. f4
{[%emt 00:01:19] [%clk 00:10:01]} Ra4 {[%emt 00:01:23] [%clk 00:13:08]} 15. Na3
{[%emt 00:01:36] [%clk 00:08:35]} exf4 {[%emt 00:00:53] [%clk 00:12:26]} 16.
gxf4 {[%emt 00:01:14] [%clk 00:07:31]} f5 {[%emt 00:00:14] [%clk 00:12:21]} 17.
Rad1 {[%emt 00:00:52] [%clk 00:06:49]} Qe8 {[%emt 00:01:27] [%clk 00:11:05]} 18.
Rd3 {[%emt 00:00:40] [%clk 00:06:19]} fxe4 {[%emt 00:02:26] [%clk 00:08:49]} 19.
Bxe4 {[%emt 00:00:08] [%clk 00:06:21]} Qf7 {[%emt 00:01:41] [%clk 00:07:18]} 20.
Qf2 {[%emt 00:03:37] [%clk 00:02:53]} Bf5 {[%emt 00:00:44] [%clk 00:06:46]} 21.
Re1 {[%emt 00:00:31] [%clk 00:02:31]} Bxe4 {[%emt 00:00:36] [%clk 00:06:20]} 22.
Rxe4 {[%emt 00:00:02] [%clk 00:02:39]} Nf5 {[%emt 00:00:02] [%clk 00:06:29]} 23.
c3 {[%emt 00:00:34] [%clk 00:02:14]} Ne3 {[%emt 00:00:37] [%clk 00:06:02]} 24.
Qg3 {[%emt 00:00:22] [%clk 00:02:00]} Raa8 {[%emt 00:01:35] [%clk 00:04:39]} 25.
cxd4 {[%emt 00:00:33] [%clk 00:01:37]} Nf5 {[%emt 00:01:05] [%clk 00:03:44]} 26.
Qg2 {[%emt 00:00:10] [%clk 00:01:36]} Rad8 {[%emt 00:00:16] [%clk 00:03:40]} 27.
Nc2 {[%emt 00:00:18] [%clk 00:01:28]} Rd6 {[%emt 00:00:11] [%clk 00:03:39]} 28.
Qe2 {[%emt 00:00:33] [%clk 00:01:04]} Rg6+ {[%emt 00:00:35] [%clk 00:03:14]} 29.
Kh1 {[%emt 00:00:11] [%clk 00:01:03]} Qd5 {[%emt 00:00:13] [%clk 00:03:12]} 30.
Rf3 {[%emt 00:00:42] [%clk 00:00:30]} Nh4 {[%emt 00:00:41] [%clk 00:02:42]} 31.
Rf2 {[%emt 00:00:06] [%clk 00:00:33]} Re8 {[%emt 00:00:23] [%clk 00:02:30]} 32.
Nd2 {[%emt 00:00:21] [%clk 00:00:22]} Rge6 {[%emt 00:00:01] [%clk 00:02:39]} 33.
Ne3 {[%emt 00:00:16] [%clk 00:00:16]} Rxe4 {[%emt 00:00:07] [%clk 00:02:42]} 0-1

[Site "Europe Echecs"]